{"text_format":"1","workbook":"xlsx","n_sheets":3,"sheets":["Dashboard","Elenco attrezzatura","Dati pivot"],"not_rendered":{"charts":0,"images":0,"macros":1,"external_links":0,"defined_names":13,"comments":0,"pivot_tables":1},"unopened":[],"bounds":{"document_bytes":16777216,"sheet_cells":100000,"rows_first":2000,"rows_last":500,"rows_between":2000,"halvings":0,"cell_chars":16384,"cell_head_chars":4096},"cells_cut":0,"cells_raw":0,"read":"whole","date_system":"1900"}

{"sheet":"Dashboard","index":0,"n_rows":20,"n_cols":6,"rows_kept":20,"cut":false,"hidden":false,"merged":[]}
[null,"Dashboard"]
[]
[]
[null,null,null,null,null,"Numero totale"]
[null,null,null,null,null,{"$f":"GETPIVOTDATA(\"Conta\",'Dati pivot'!$B$11)","v":3}]
[]
[null,null,null,null,null,"Costo mensile totale"]
[null,null,null,null,null,{"$f":"GETPIVOTDATA(\"Costo mensile  totale\",'Dati pivot'!$B$11)","v":1765.5943035068672}]
[]
[null,null,null,null,null,"Costi operativi"]
[null,null,null,null,null,{"$f":"GETPIVOTDATA(\"Costi operativi\",'Dati pivot'!$B$11)","v":605}]
[]
[null,null,null,null,null,"Ammortamento mensile"]
[null,null,null,null,null,{"$f":"GETPIVOTDATA(\"Ammortamento mensile\",'Dati pivot'!$B$11)","v":659.72222222222217}]
[]
[null,null,null,null,null,"Importo di pagamento"]
[null,null,null,null,null,{"$f":"GETPIVOTDATA(\"Importo pagamento\",'Dati pivot'!$B$11)","v":1160.5943035068672}]
[]
[null,null,null,null,null,"Valore corrente"]
[null,null,null,null,null,{"$f":"GETPIVOTDATA(\"Valore  corrente\",'Dati pivot'!$B$11)","v":37424.200913242013}]

{"sheet":"Elenco attrezzatura","index":1,"n_rows":10,"n_cols":20,"rows_kept":10,"cut":false,"hidden":false,"merged":[]}
[null,"Elenco delle attrezzature"]
[]
[null,null,null,"Evidenziare quando i pagamenti mensili rimanenti sono inferiori a: ",20]
[]
[null,"Articolo o\nnumero di serie1","Descrizione articolo\n(marca e modello)","Posizione","Condizione","Fornitore","Anni di servizio rimanenti ","Valore iniziale","Pagamento in acconto","Data acquisto o noleggio","Condizione di noleggio \n(anni)","Tasso noleggio","Costi\noperativi mensili","Valore previsto a fine contratto","Pagamento mensile rimanente","Pagamento mensile","Costo mensile totale","Ammortamento annuale\n(quote costanti)","Ammortamento annuale\n(quote costanti)2","Valore corrente"]
[null,123,"Marca modello 1","Sede centrale","Buono","Locale",5,30000,5000,"2011-01-15",4,0.1,200,20000,{"$f":"IFERROR(SUMPRODUCT(--(DAY(ROW(OFFSET($A$1,,,DATE(YEAR(Apparecchiature[[#This Row],[Data acquisto o noleggio]])+Apparecchiature[[#This Row],[Condizione di noleggio \n(anni)]],MONTH(Apparecchiature[[#This Row],[Data acquisto o noleggio]])-1,DAY(Apparecchiature[[#This Row],[Data acquisto o noleggio]]))-TODAY()))+DATE(YEAR(Apparecchiature[[#This Row],[Data acquisto o noleggio]])+Apparecchiature[[#This Row],[Condizione di noleggio \n(anni)]],MONTH(Apparecchiature[[#This Row],[Data acquisto o noleggio]]),DAY(Apparecchiature[[#This Row],[Data acquisto o noleggio]]))-1)=DAY(Apparecchiature[[#This Row],[Data acquisto o noleggio]]))),0)","v":25},{"$f":"IFERROR(-(Apparecchiature[Valore iniziale]>0)*(Apparecchiature[Valore iniziale]<>Apparecchiature[Pagamento in acconto])*PMT(Apparecchiature[Tasso noleggio]/MesiInAnno,Apparecchiature[Condizione di noleggio \n(anni)]*MesiInAnno,Apparecchiature[Valore iniziale]-Apparecchiature[Pagamento in acconto]),0)","v":634.06458586867973},{"$f":"Apparecchiature[[#This Row],[Pagamento mensile]]+Apparecchiature[Costi\noperativi mensili]","v":834.06458586867973},{"$f":"IFERROR((Apparecchiature[Valore iniziale]>0)*SLN(Apparecchiature[Valore iniziale],Apparecchiature[Valore previsto a fine contratto],Apparecchiature[Condizione di noleggio \n(anni)]),0)","v":2500},{"$f":"IFERROR(Apparecchiature[Ammortamento annuale\n(quote costanti)]/MesiInAnno,0)","v":208.33333333333334},{"$f":"IFERROR(Apparecchiature[Valore iniziale]-(Apparecchiature[Ammortamento annuale\n(quote costanti)]*((TODAY()-Apparecchiature[Data acquisto o noleggio])/GiorniInAnno)),0)","v":25328.767123287671}]
[null,234,"Marca modello 2","Sede centrale","Buono","Locale",4,12500,1500,"2011-03-10",3,7.7499999999999999E-2,120,3000,{"$f":"IFERROR(SUMPRODUCT(--(DAY(ROW(OFFSET($A$1,,,DATE(YEAR(Apparecchiature[[#This Row],[Data acquisto o noleggio]])+Apparecchiature[[#This Row],[Condizione di noleggio \n(anni)]],MONTH(Apparecchiature[[#This Row],[Data acquisto o noleggio]])-1,DAY(Apparecchiature[[#This Row],[Data acquisto o noleggio]]))-TODAY()))+DATE(YEAR(Apparecchiature[[#This Row],[Data acquisto o noleggio]])+Apparecchiature[[#This Row],[Condizione di noleggio \n(anni)]],MONTH(Apparecchiature[[#This Row],[Data acquisto o noleggio]]),DAY(Apparecchiature[[#This Row],[Data acquisto o noleggio]]))-1)=DAY(Apparecchiature[[#This Row],[Data acquisto o noleggio]]))),0)","v":15},{"$f":"IFERROR(-(Apparecchiature[Valore iniziale]>0)*(Apparecchiature[Valore iniziale]<>Apparecchiature[Pagamento in acconto])*PMT(Apparecchiature[Tasso noleggio]/MesiInAnno,Apparecchiature[Condizione di noleggio \n(anni)]*MesiInAnno,Apparecchiature[Valore iniziale]-Apparecchiature[Pagamento in acconto]),0)","v":343.43280007691891},{"$f":"Apparecchiature[[#This Row],[Pagamento mensile]]+Apparecchiature[Costi\noperativi mensili]","v":463.43280007691891},{"$f":"IFERROR((Apparecchiature[Valore iniziale]>0)*SLN(Apparecchiature[Valore iniziale],Apparecchiature[Valore previsto a fine contratto],Apparecchiature[Condizione di noleggio \n(anni)]),0)","v":3166.6666666666665},{"$f":"IFERROR(Apparecchiature[Ammortamento annuale\n(quote costanti)]/MesiInAnno,0)","v":263.88888888888886},{"$f":"IFERROR(Apparecchiature[Valore iniziale]-(Apparecchiature[Ammortamento annuale\n(quote costanti)]*((TODAY()-Apparecchiature[Data acquisto o noleggio])/GiorniInAnno)),0)","v":7051.5981735159821}]
[null,345,"Marca modello 2","Filiale 1","Discreto","Altro",1,10000,2500,"2010-09-15",4,0.08,285,1000,{"$f":"IFERROR(SUMPRODUCT(--(DAY(ROW(OFFSET($A$1,,,DATE(YEAR(Apparecchiature[[#This Row],[Data acquisto o noleggio]])+Apparecchiature[[#This Row],[Condizione di noleggio \n(anni)]],MONTH(Apparecchiature[[#This Row],[Data acquisto o noleggio]])-1,DAY(Apparecchiature[[#This Row],[Data acquisto o noleggio]]))-TODAY()))+DATE(YEAR(Apparecchiature[[#This Row],[Data acquisto o noleggio]])+Apparecchiature[[#This Row],[Condizione di noleggio \n(anni)]],MONTH(Apparecchiature[[#This Row],[Data acquisto o noleggio]]),DAY(Apparecchiature[[#This Row],[Data acquisto o noleggio]]))-1)=DAY(Apparecchiature[[#This Row],[Data acquisto o noleggio]]))),0)","v":21},{"$f":"IFERROR(-(Apparecchiature[Valore iniziale]>0)*(Apparecchiature[Valore iniziale]<>Apparecchiature[Pagamento in acconto])*PMT(Apparecchiature[Tasso noleggio]/MesiInAnno,Apparecchiature[Condizione di noleggio \n(anni)]*MesiInAnno,Apparecchiature[Valore iniziale]-Apparecchiature[Pagamento in acconto]),0)","v":183.09691756126861},{"$f":"Apparecchiature[[#This Row],[Pagamento mensile]]+Apparecchiature[Costi\noperativi mensili]","v":468.09691756126858},{"$f":"IFERROR((Apparecchiature[Valore iniziale]>0)*SLN(Apparecchiature[Valore iniziale],Apparecchiature[Valore previsto a fine contratto],Apparecchiature[Condizione di noleggio \n(anni)]),0)","v":2250},{"$f":"IFERROR(Apparecchiature[Ammortamento annuale\n(quote costanti)]/MesiInAnno,0)","v":187.5},{"$f":"IFERROR(Apparecchiature[Valore iniziale]-(Apparecchiature[Ammortamento annuale\n(quote costanti)]*((TODAY()-Apparecchiature[Data acquisto o noleggio])/GiorniInAnno)),0)","v":5043.8356164383567}]
[null,"Totale",null,null,null,null,{"$f":"SUBTOTAL(101,Apparecchiature[[Anni di servizio rimanenti ]])","v":3.3333333333333335},{"$f":"SUBTOTAL(109,Apparecchiature[Valore iniziale])","v":52500},{"$f":"SUBTOTAL(109,Apparecchiature[Pagamento in acconto])","v":9000},null,{"$f":"SUBTOTAL(101,Apparecchiature[Condizione di noleggio \n(anni)])","v":3.6666666666666665},{"$f":"SUBTOTAL(101,Apparecchiature[Tasso noleggio])","v":8.5833333333333331E-2},{"$f":"SUBTOTAL(109,Apparecchiature[Costi\noperativi mensili])","v":605},{"$f":"SUBTOTAL(109,Apparecchiature[Valore previsto a fine contratto])","v":24000},{"$f":"SUBTOTAL(101,Apparecchiature[Pagamento mensile rimanente])","v":20.333333333333332},{"$f":"SUBTOTAL(109,Apparecchiature[Pagamento mensile])","v":1160.5943035068672},{"$f":"SUBTOTAL(109,Apparecchiature[Costo mensile totale])","v":1765.5943035068672},{"$f":"SUBTOTAL(101,Apparecchiature[Ammortamento annuale\n(quote costanti)])","v":2638.8888888888887},{"$f":"SUBTOTAL(101,Apparecchiature[Ammortamento annuale\n(quote costanti)2])","v":219.90740740740739},{"$f":"SUBTOTAL(109,Apparecchiature[Valore corrente])","v":37424.200913242013}]
[null,"Numero",null,null,null,null,{"$f":"SUBTOTAL(101,Apparecchiature[[Anni di servizio rimanenti ]])","v":3.3333333333333335},{"$f":"SUBTOTAL(109,Apparecchiature[Valore iniziale])","v":52500},{"$f":"SUBTOTAL(109,Apparecchiature[Pagamento in acconto])","v":9000},null,{"$f":"SUBTOTAL(101,Apparecchiature[Condizione di noleggio \n(anni)])","v":3.6666666666666665},{"$f":"SUBTOTAL(101,Apparecchiature[Tasso noleggio])","v":8.5833333333333331E-2},{"$f":"SUBTOTAL(109,Apparecchiature[Costi\noperativi mensili])","v":605},{"$f":"SUBTOTAL(109,Apparecchiature[Valore previsto a fine contratto])","v":24000}]

{"sheet":"Dati pivot","index":2,"n_rows":15,"n_cols":8,"rows_kept":15,"cut":false,"hidden":true,"merged":[]}
[null,"Dati pivot"]
[null,"Questo foglio deve restare nascosto. L'alterazione della struttura della tabella pivot in questo foglio può causare errori nei filtri dei dati in Dashboard."]
[]
[null,"Descrizione articolo\n(marca e modello)","(Tutto)"]
[null,"Posizione","(Tutto)"]
[null,"Condizione","(Tutto)"]
[null,"Fornitore","(Tutto)"]
[null,"Anni di servizio rimanenti ","(Tutto)"]
[null,"Condizione di noleggio \n(anni)","(Tutto)"]
[]
[null,"Etichette di riga","Conta","Costi operativi","Importo pagamento","Costo mensile  totale","Ammortamento mensile","Valore  corrente"]
[null,123,1,200,634.06458586867973,834.06458586867973,208.33333333333334,25328.767123287671]
[null,234,1,120,343.43280007691891,463.43280007691891,263.88888888888886,7051.5981735159821]
[null,345,1,285,183.09691756126861,468.09691756126858,187.5,5043.8356164383567]
[null,"Totale complessivo",3,605,1160.5943035068672,1765.5943035068672,659.72222222222217,37424.200913242013]